[Event "elllobregat Open-A 2019"]
[Site "El Prat de Llobregat"]
[Date "2019.12.08"]
[Round "6.16"]
[White "Karthikeyan, Murali"]
[Black "Cruz, Filemon"]
[Result "1/2-1/2"]
[ECO "B18"]
[WhiteElo "2611"]
[BlackElo "2329"]
[Annotator "ChessBase"]
[PlyCount "66"]
[EventDate "2019.12.03"]
[EventType "swiss"]
[EventCountry "ESP"]
[SourceTitle "playchess.com"]
[Source "ChessBase"]
[SourceQuality "1"]
[TimeControl "40/5400+30:1800+30"]

1. e4 {[%emt 0:00:29]} c6 {[%emt 0:01:27]} 2. d4 {[%emt 0:00:38]} d5 {[%emt 0:00:13]} 3. Nc3 {[%emt 0:01:14]} dxe4 {[%emt 0:00:29]} 4. Nxe4 {[%emt 0:00:06]} Bf5 {[%emt 0:01:27]} 5. Ng3 {[%emt 0:08:51]} Bg6 {[%emt 0:00:28]} 6. h4 {[%emt 0:00:22]} h6 {[%emt 0:00:25]} 7. Nh3 {[%emt 0:03:34]} Nf6 {[%emt 0:03:08]} 8. Nf4 {[%emt 0:00:09]} Bh7 {[%emt 0:00:21]} 9. Bc4 {[%emt 0:00:54]} e6 {[%emt 0:02:08]} 10. c3 {[%emt 0:15:33]} Bd6 {[%emt 0:03:46]} 11. Nfh5 {[%emt 0:06:46]} O-O {[%emt 0:03:35]} 12. Bd3 {[%emt 0:03:07]} Bxd3 {[%emt 0:09:03]} 13. Qxd3 {[%emt 0:12:05]} Nbd7 {[%emt 0:03:20]} 14. Bd2 {[%emt 0:15:09]} Bxg3 {[%emt 0:01:50]} 15. Nxg3 {[%emt 0:00:05]} c5 {[%emt 0:01:14]} 16. O-O-O {[%emt 0:04:13]} Rc8 {[%emt 0:02:27]} 17. Kb1 {[%emt 0:01:08]} Qc7 {[%emt 0:01:09]} 18. Bg5 {[%emt 0:03:40]} Qc6 {[%emt 0:15:15]} 19. f3 {[%emt 0:02:33]} b5 {[%emt 0:16:17]} 20. dxc5 {[%emt 0:00:44]} Nxc5 {[%emt 0:02:43]} 21. Qd4 {[%emt 0:03:35]} Ncd7 {[%emt 0:03:37]} 22. Bc1 {[%emt 0:04:35]} a5 {[%emt 0:01:06]} 23. Qd6 {[%emt 0:05:39]} Qb7 {[%emt 0:00:17]} 24. a3 {[%emt 0:01:51]} Rc6 {[%emt 0:00:22]} 25. Qd4 {[%emt 0:00:12]} Rc4 {[%emt 0:00:19]} 26. Qd3 {[%emt 0:00:28]} Qc7 {[%emt 0:06:23]} 27. Qd6 {[%emt 0:01:17]} Qb7 {[%emt 0:00:14]} 28. Qd3 {[%emt 0:02:19]} Rfc8 {[%emt 0:02:49]} 29. Ne4 {[%emt 0:00:15]} Nxe4 {[%emt 0:01:08]} 30. Qxd7 {[%emt 0:00:01]} R4c7 {[%emt 0:00:39]} 31. Qd4 {[%emt 0:00:15]} Rc4 {[%emt 0:01:28]} 32. Qd7 {[%emt 0:00:20]} R4c7 {[%emt 0:00:32]} 33. Qd4 {[%emt 0:00:03]} Rc4 {[%emt 0:00:46]} 1/2-1/2